{"text_format":"1","workbook":"xlsx","n_sheets":10,"sheets":["Form 120P-WA-NB","Multiple Sites","Option to Assign Payment","Optional Demographic Questions","NB - HVAC and Water Heating","NB - Lodging and Foodservice","NB - Grocery","Eligible Spaces","Lookups","Admin Tools"],"not_rendered":{"charts":0,"images":11,"macros":1,"external_links":3,"defined_names":60,"comments":0,"pivot_tables":0},"unopened":[],"bounds":{"document_bytes":16777216,"sheet_cells":100000,"rows_first":2000,"rows_last":500,"rows_between":2000,"halvings":0,"cell_chars":16384,"cell_head_chars":4096},"cells_cut":0,"cells_raw":0,"read":"whole","date_system":"1900"}

{"sheet":"Form 120P-WA-NB","index":0,"n_rows":144,"n_cols":43,"rows_kept":144,"cut":false,"hidden":false,"merged":[[16,21,16,38],[9,21,9,23],[9,24,9,29],[9,30,9,32],[9,33,9,38],[13,21,13,38],[46,21,46,24],[46,25,46,38],[19,21,19,29],[19,31,19,38],[22,21,22,28],[22,29,22,32],[22,33,22,34],[22,36,22,38],[25,21,25,28],[25,30,25,38],[37,21,37,38],[43,21,43,26],[43,27,43,38],[29,21,29,33],[29,35,29,38],[30,21,30,33],[60,7,60,9],[62,1,62,6],[62,7,62,9],[56,1,56,38],[50,1,50,19],[52,1,52,8],[52,9,52,12],[52,13,52,14],[52,16,52,19],[52,30,52,38],[54,1,54,9],[54,11,54,19],[54,30,54,38],[55,1,55,9],[55,11,55,18],[30,35,30,38],[140,23,143,38],[144,23,146,38],[62,33,62,38],[64,1,64,38],[65,2,65,38],[67,2,67,15],[67,17,67,32],[67,34,67,37],[71,1,71,38],[72,1,72,30],[74,1,74,27],[74,28,74,38],[58,1,58,6],[58,7,58,9],[60,1,60,6]]}
[]
[null,"New Buildings Standard Incentives - NW Natural Washington"]
[null,"Commercial Buildings | Incentive Application | Form 120P-WA-NB"]
[]
[null,"To be completed by Participant"]
[]
[null,"TRC is a Program Management Contractor for Energy Trust of Oregon."]
[]
[null,null,null,null,null,null,null,null,null,null,null,null,null,null,null,null,null,null,null,null,null,"Program Use Only",null,null,null,null,null,null,null,null,null,null,null,null,null,null,null,null,{"$f":"Version","v":"v2025.2"}]
[null,null,null,null,null,null,null,null,null,null,null,null,null,null,null,null,null,null,null,null,null,"Reference ID",null,null,null,null,null,null,null,null,"PT ID"]
[]
[null,null,null,null,null,null,null,null,null,null,null,null,null,null,null,null,null,null,null,null,null,"Participant Information"]
[]
[null,null,null,null,null,null,null,null,null,null,null,null,null,null,null,null,null,null,null,null,null," "]
[null,null,null,null,null,null,null,null,null,null,null,null,null,null,null,null,null,null,null,null,null,"Legal Business Name (must match Participant's submitted W-9)"]
[]
[]
[null,null,null,null,null,null,null,null,null,null,null,null,null,null,null,null,null,null,null,null,null,"Assumed Business Name or DBA"]
[]
[]
[null,null,null,null,null,null,null,null,null,null,null,null,null,null,null,null,null,null,null,null,null,"Contact Name",null,null,null,null,null,null,null,null,null,"Title"]
[]
[]
[null,null,null,null,null,null,null,null,null,null,null,null,null,null,null,null,null,null,null,null,null,"Participant Mailing Address",null,null,null,null,null,null,null,"City",null,null,null,"State",null,null,"Zip"]
[]
[]
[null,null,null,null,null,null,null,null,null,null,null,null,null,null,null,null,null,null,null,null,null,"Primary Phone",null,null,null,null,null,null,null,null,"Email Address"]
[]
[null,null,null,null,null,null,null,null,null,null,null,null,null,null,null,null,null,null,null,null,null,"Business Type:",null,null,null,null,null,null,null,null,null,null,null,null,null,null,null,null,null,null,null,0]
[null,null,null,null,null,null,null,null,null,null,null,null,null,null,null,null,null,null,null,null,null,"How many locations does your business have?"]
[null,null,null,null,null,null,null,null,null,null,null,null,null,null,null,null,null,null,null,null,null,"How many employees does your business have?"]
[null,null,null,null,null,null,null,null,null,null,null,null,null,null,null,null,null,null,null,null,null,"Participant Role:",null,null,null,null,null,null,null,null,null,null,null,null,null,null,null,null,null,null,null,0]
[null,null,null,null,null,null,null,null,null,null,null,null,null,null,null,null,null,null,null,null,null,"Is your firm/organization a Community Service Provider? "]
[null,null,null,null,null,null,null,null,null,null,null,null,null,null,null,null,null,null,null,null,null,"New Building Project Type"]
[]
[]
[]
[]
[null,null,null,null,null,null,null,null,null,null,null,null,null,null,null,null,null,null,null,null,null,"Trade Ally/Contractor/Installer Company Name (if applicable)"]
[]
[null,null,null,null,null,null,null,null,null,null,null,null,null,null,null,null,null,null,null,null,null,"Utility Information "]
[]
[null,null,null,null,null,null,null,null,null,null,null,null,null,null,null,null,null,null,null,null,null,"(You must attach a copy of your most recent utility bill)"]
[null,null,null,null,null,null,null,null,null,null,null,null,null,null,null,null,null,null,null,null,null,"NW Natural Account #:"]
[]
[]
[null,null,null,null,null,null,null,null,null,null,null,null,null,null,null,null,null,null,null,null,null,"Rate Schedule:"]
[]
[]
[]
[null,"Project and Facility Information",null,null,null,null,null,null,null,null,null,null,null,null,null,null,null,null,null,null,null,"Primary Heating Fuel Source"]
[]
[null,null,null,null,null,null,null,null,null,null,null,null,null,null,null,null,null,null,null,null,null,null,null,null,null,null,null,null,null,null,null,null,null,null,null,null,null,null,null,null,null,0,{"$f":"VLOOKUP($AP53,Fuel,2)","v":"None"}]
[null,"Site Address*",null,null,null,null,null,null,null,"City",null,null,null,"State",null,null,"Zip",null,null,null,null,"Water Heating Fuel Source"]
[null,null,null,null,null,null,null,null,null,null,null,null,null,null,null,null,null,null,null,null,null,null,null,null,null,null,null,null,null,null,null,null,null,null,null,null,null,null,null,null,null,0,{"$f":"VLOOKUP($AP55,Fuel,2)","v":"None"}]
[null,"Contact name for Site Visit",null,null,null,null,null,null,null,null,null,"Phone number for Site Visit"]
[null,"*If requesting incentives for multiple locations,use the Multiple Sites section to list each location's site address, utility infomation, and heating fuel sources"]
[]
[null,"Total sq. ft. of Business",null,null,null,null,null,null,null,null,null,"Building Use Type:"]
[]
[null,"Year Built"]
[]
[]
[]
[null,"Participant Signature"]
[]
[]
[]
[null,null,"Authorized Representative Signature",null,null,null,null,null,null,null,null,null,null,null,null,null,null,"Name (printed)",null,null,null,null,null,null,null,null,null,null,null,null,null,null,null,null,"Date"]
[]
[]
[null,"Grant Funding"]
[null,"Did you receive any other external funding, such as grants, that reduced your final out-of-pocket purchase/installation costs for any energy saving equipment listed in this application (See Project Cost Documentation for more information)?"]
[]
[null,"If yes, what is the total amount of external funding, Include additional information with submitted invoices."]
[]
[null,"TERMS AND CONDITIONS"]
[]
[]
[]
[]
[]
[]
[]
[]
[]
[]
[]
[]
[]
[]
[]
[]
[]
[]
[]
[]
[]
[]
[]
[]
[]
[]
[]
[]
[]
[]
[]
[]
[]
[]
[]
[]
[]
[]
[]
[]
[]
[]
[]
[]
[]
[]
[]
[]
[]
[]
[]
[]
[]
[]
[]
[]
[]
[]
[]
[]
[]
[]
[]
[]
[]
[]
[null,null,null,null,null,null,null,null,null,null,null,null,null,null,null,null,null,null,null," "]

{"sheet":"Multiple Sites","index":1,"n_rows":113,"n_cols":12,"rows_kept":113,"cut":false,"hidden":false,"merged":[]}
[]
["New Buildings Standard Incentives - NW Natural Washington"]
["Commercial Buildings | Incentive Application | Form 120P-WA-NB"]
[]
["To be completed by Participant"]
[]
["TRC is a Program Management Contractor for Energy Trust of Oregon.",null,null,null,null,null,null,null,"Program Use Only",null,null,{"$f":"Version","v":"v2025.2"}]
[null,null,null,null,null,null,null,null,"Reference ID",{"$f":"IF(ReferenceID=\"\",\"\",ReferenceID)","v":""},"PT ID",{"$f":"IF(PTID=\"\",\"\",PTID)","v":""}]
["Multiple Sites"]
["Location\n(Bldg Name / Store #)","Site Address","City","State","Zip","Electric Utility","Electric Account Number","Gas Utility","Gas Account Number","Gas Rate Schedule","Primary Heating \nFuel Source","Water Heating \nFuel Source"]
[null,null,null,null,null,"(select)",null,"(select)",null,null,"(select)","(select)"]
[null,null,null,null,null,"(select)",null,"(select)",null,null,"(select)","(select)"]
[null,null,null,null,null,"(select)",null,"(select)",null,null,"(select)","(select)"]
[null,null,null,null,null,"(select)",null,"(select)",null,null,"(select)","(select)"]
[null,null,null,null,null,"(select)",null,"(select)",null,null,"(select)","(select)"]
[null,null,null,null,null,"(select)",null,"(select)",null,null,"(select)","(select)"]
[null,null,null,null,null,"(select)",null,"(select)",null,null,"(select)","(select)"]
[null,null,null,null,null,"(select)",null,"(select)",null,null,"(select)","(select)"]
[null,null,null,null,null,"(select)",null,"(select)",null,null,"(select)","(select)"]
[null,null,null,null,null,"(select)",null,"(select)",null,null,"(select)","(select)"]
[null,null,null,null,null,"(select)",null,"(select)",null,null,"(select)","(select)"]
[null,null,null,null,null,"(select)",null,"(select)",null,null,"(select)","(select)"]
[null,null,null,null,null,"(select)",null,"(select)",null,null,"(select)","(select)"]
[null,null,null,null,null,"(select)",null,"(select)",null,null,"(select)","(select)"]
[null,null,null,null,null,"(select)",null,"(select)",null,null,"(select)","(select)"]
[null,null,null,null,null,"(select)",null,"(select)",null,null,"(select)","(select)"]
[null,null,null,null,null,"(select)",null,"(select)",null,null,"(select)","(select)"]
[null,null,null,null,null,"(select)",null,"(select)",null,null,"(select)","(select)"]
[null,null,null,null,null,"(select)",null,"(select)",null,null,"(select)","(select)"]
[null,null,null,null,null,"(select)",null,"(select)",null,null,"(select)","(select)"]
[null,null,null,null,null,"(select)",null,"(select)",null,null,"(select)","(select)"]
[null,null,null,null,null,"(select)",null,"(select)",null,null,"(select)","(select)"]
[null,null,null,null,null,"(select)",null,"(select)",null,null,"(select)","(select)"]
[null,null,null,null,null,"(select)",null,"(select)",null,null,"(select)","(select)"]
[null,null,null,null,null,"(select)",null,"(select)",null,null,"(select)","(select)"]
[null,null,null,null,null,"(select)",null,"(select)",null,null,"(select)","(select)"]
[null,null,null,null,null,"(select)",null,"(select)",null,null,"(select)","(select)"]
[null,null,null,null,null,"(select)",null,"(select)",null,null,"(select)","(select)"]
[null,null,null,null,null,"(select)",null,"(select)",null,null,"(select)","(select)"]
[null,null,null,null,null,"(select)",null,"(select)",null,null,"(select)","(select)"]
[null,null,null,null,null,"(select)",null,"(select)",null,null,"(select)","(select)"]
[null,null,null,null,null,"(select)",null,"(select)",null,null,"(select)","(select)"]
[null,null,null,null,null,"(select)",null,"(select)",null,null,"(select)","(select)"]
[null,null,null,null,null,"(select)",null,"(select)",null,null,"(select)","(select)"]
[null,null,null,null,null,"(select)",null,"(select)",null,null,"(select)","(select)"]
[null,null,null,null,null,"(select)",null,"(select)",null,null,"(select)","(select)"]
[null,null,null,null,null,"(select)",null,"(select)",null,null,"(select)","(select)"]
[null,null,null,null,null,"(select)",null,"(select)",null,null,"(select)","(select)"]
[null,null,null,null,null,"(select)",null,"(select)",null,null,"(select)","(select)"]
[null,null,null,null,null,"(select)",null,"(select)",null,null,"(select)","(select)"]
[null,null,null,null,null,"(select)",null,"(select)",null,null,"(select)","(select)"]
[null,null,null,null,null,"(select)",null,"(select)",null,null,"(select)","(select)"]
[null,null,null,null,null,"(select)",null,"(select)",null,null,"(select)","(select)"]
[null,null,null,null,null,"(select)",null,"(select)",null,null,"(select)","(select)"]
[null,null,null,null,null,"(select)",null,"(select)",null,null,"(select)","(select)"]
[null,null,null,null,null,"(select)",null,"(select)",null,null,"(select)","(select)"]
[null,null,null,null,null,"(select)",null,"(select)",null,null,"(select)","(select)"]
[null,null,null,null,null,"(select)",null,"(select)",null,null,"(select)","(select)"]
[null,null,null,null,null,"(select)",null,"(select)",null,null,"(select)","(select)"]
[null,null,null,null,null,"(select)",null,"(select)",null,null,"(select)","(select)"]
[null,null,null,null,null,"(select)",null,"(select)",null,null,"(select)","(select)"]
[null,null,null,null,null,"(select)",null,"(select)",null,null,"(select)","(select)"]
[null,null,null,null,null,"(select)",null,"(select)",null,null,"(select)","(select)"]
[null,null,null,null,null,"(select)",null,"(select)",null,null,"(select)","(select)"]
[null,null,null,null,null,"(select)",null,"(select)",null,null,"(select)","(select)"]
[null,null,null,null,null,"(select)",null,"(select)",null,null,"(select)","(select)"]
[null,null,null,null,null,"(select)",null,"(select)",null,null,"(select)","(select)"]
[null,null,null,null,null,"(select)",null,"(select)",null,null,"(select)","(select)"]
[null,null,null,null,null,"(select)",null,"(select)",null,null,"(select)","(select)"]
[null,null,null,null,null,"(select)",null,"(select)",null,null,"(select)","(select)"]
[null,null,null,null,null,"(select)",null,"(select)",null,null,"(select)","(select)"]
[null,null,null,null,null,"(select)",null,"(select)",null,null,"(select)","(select)"]
[null,null,null,null,null,"(select)",null,"(select)",null,null,"(select)","(select)"]
[null,null,null,null,null,"(select)",null,"(select)",null,null,"(select)","(select)"]
[null,null,null,null,null,"(select)",null,"(select)",null,null,"(select)","(select)"]
[null,null,null,null,null,"(select)",null,"(select)",null,null,"(select)","(select)"]
[null,null,null,null,null,"(select)",null,"(select)",null,null,"(select)","(select)"]
[null,null,null,null,null,"(select)",null,"(select)",null,null,"(select)","(select)"]
[null,null,null,null,null,"(select)",null,"(select)",null,null,"(select)","(select)"]
[null,null,null,null,null,"(select)",null,"(select)",null,null,"(select)","(select)"]
[null,null,null,null,null,"(select)",null,"(select)",null,null,"(select)","(select)"]
[null,null,null,null,null,"(select)",null,"(select)",null,null,"(select)","(select)"]
[null,null,null,null,null,"(select)",null,"(select)",null,null,"(select)","(select)"]
[null,null,null,null,null,"(select)",null,"(select)",null,null,"(select)","(select)"]
[null,null,null,null,null,"(select)",null,"(select)",null,null,"(select)","(select)"]
[null,null,null,null,null,"(select)",null,"(select)",null,null,"(select)","(select)"]
[null,null,null,null,null,"(select)",null,"(select)",null,null,"(select)","(select)"]
[null,null,null,null,null,"(select)",null,"(select)",null,null,"(select)","(select)"]
[null,null,null,null,null,"(select)",null,"(select)",null,null,"(select)","(select)"]
[null,null,null,null,null,"(select)",null,"(select)",null,null,"(select)","(select)"]
[null,null,null,null,null,"(select)",null,"(select)",null,null,"(select)","(select)"]
[null,null,null,null,null,"(select)",null,"(select)",null,null,"(select)","(select)"]
[null,null,null,null,null,"(select)",null,"(select)",null,null,"(select)","(select)"]
[null,null,null,null,null,"(select)",null,"(select)",null,null,"(select)","(select)"]
[null,null,null,null,null,"(select)",null,"(select)",null,null,"(select)","(select)"]
[null,null,null,null,null,"(select)",null,"(select)",null,null,"(select)","(select)"]
[null,null,null,null,null,"(select)",null,"(select)",null,null,"(select)","(select)"]
[null,null,null,null,null,"(select)",null,"(select)",null,null,"(select)","(select)"]
[null,null,null,null,null,"(select)",null,"(select)",null,null,"(select)","(select)"]
[null,null,null,null,null,"(select)",null,"(select)",null,null,"(select)","(select)"]
[null,null,null,null,null,"(select)",null,"(select)",null,null,"(select)","(select)"]
[null,null,null,null,null,"(select)",null,"(select)",null,null,"(select)","(select)"]
[null,null,null,null,null,"(select)",null,"(select)",null,null,"(select)","(select)"]
[null,null,null,null,null,"(select)",null,"(select)",null,null,"(select)","(select)"]
[null,null,null,null,null,"(select)",null,"(select)",null,null,"(select)","(select)"]
[null,null,null,null,null,"(select)",null,"(select)",null,null,"(select)","(select)"]
[null,null,null,null,null,"(select)",null,"(select)",null,null,"(select)","(select)"]
[null,null,null,null,null,"(select)",null,"(select)",null,null,"(select)","(select)"]
[null,null,null,null,null,"(select)",null,"(select)",null,null,"(select)","(select)"]
[null,null,null,null,null,"(select)",null,"(select)",null,null,"(select)","(select)"]
[null,null,null,null,null,"(select)",null,"(select)",null,null,"(select)","(select)"]
[null,null,null,null,null,"(select)",null,"(select)",null,null,"(select)","(select)"]
[null,null,null,null,null,"(select)",null,"(select)",null,null,"(select)","(select)"]

{"sheet":"Option to Assign Payment","index":2,"n_rows":30,"n_cols":33,"rows_kept":30,"cut":false,"hidden":false,"merged":[[25,8,25,31],[26,8,26,32],[25,1,26,7],[29,1,30,3],[29,4,30,9],[29,20,30,21],[27,1,28,5],[27,6,27,15],[27,17,27,24],[29,22,30,31],[27,26,27,27],[27,29,27,31],[28,6,28,12],[29,32,30,32],[24,8,24,16],[24,18,24,27],[24,29,24,31],[20,8,20,31],[20,1,21,7],[21,8,21,31],[23,1,24,7],[23,8,23,16],[23,18,23,27],[23,29,23,31],[9,15,9,17],[9,18,9,23],[9,24,9,26],[9,27,9,32],[11,1,12,32],[20,32,21,32],[15,1,16,32],[17,1,17,32],[18,1,19,7],[18,8,18,16],[18,18,18,27],[18,29,18,31],[19,8,19,16],[19,18,19,27],[19,29,19,31]]}
[]
[null,"New Buildings Standard Incentives - NW Natural Washington"]
[null,"Commercial Buildings | Option to Assign Payment | Form 120P-WA-NB"]
[]
[null,"To be completed by Participant"]
[]
[null,"TRC is a Program Management Contractor for Energy Trust of Oregon."]
[]
[null,null,null,null,null,null,null,null,null,null,null,null,null,null,null,"Program Use Only",null,null,null,null,null,null,null,null,null,null,null,null,null,null,null,null,{"$f":"Version","v":"v2025.2"}]
[null,null,null,null,null,null,null,null,null,null,null,null,null,null,null,"Reference ID",null,null,{"$f":"IF(ReferenceID=\"\",\"\",ReferenceID)","v":""},null,null,null,null,null,"PT ID",null,null,{"$f":"IF(PTID=\"\",\"\",PTID)","v":""}]
[]
[null,"Option to Assign Incentive Payment\nPLEASE NOTE: The Energy Trust incentive payment will be made to Participant unless Participant and its designated Payee complete the section below to assign the payment to Payee. An IRS Form W-9 (Request for Taxpayer Identification Number and Certification) for the Payee named below must be attached if this option is selected."]
[]
[]
[null,"PARTICIPANT AND PAYEE"]
[null,"Both Participant and Payee understand and agree that if this Option to Assign Incentive Payment is selected the incentive check will be issued to the Payee named below at the address listed below and Energy Trust is not responsible for any tax liabilities that may be associated with the incentive payment. In addition, Participant understands that, notwithstanding this assignment, responsibility for complying with the terms and conditions of this incentive agreement shall continue to be the obligation of Participant, and Energy Trust's sole responsibility under this incentive agreement shall be to Participant. Accordingly, Payee understands that it shall have no rights against Energy Trust or the PMC with respect to such assignment or the payment of the incentive, and in the event that Energy Trust does not pay the incentive as a result of Participant's failure to comply with this agreement, Payee's sole recourse shall be against Participant. Participant directs Energy Trust to pay any incentive to which it is entitled to the Payee named below and waives all rights to directly receive the Energy Trust incentives for the identified energy-efficiency project. "]
[]
[null,"SIGNATURES: By my signature below, I represent to Energy Trust that I have read this agreement and am duly authorized to sign this Option to Assign Incentive Payment on behalf of the party for whom I am signing."]
[null,"On behalf of Participant\n(Authorized Representative)"]
[null,null,null,null,null,null,null,null,"(printed)",null,null,null,null,null,null,null,null,null,"(signature)",null,null,null,null,null,null,null,null,null,null,"Date"]
[null,"Participant",null,null,null,null,null,null,{"$f":"IF(BusinessName=\"\",\"\",BusinessName)","v":""}]
[null,null,null,null,null,null,null,null,"(Legal business name as shown on W9)"]
[]
[null,"On behalf of Payee\n(Authorized Representative)"]
[null,null,null,null,null,null,null,null,"(printed)",null,null,null,null,null,null,null,null,null,"(signature)",null,null,null,null,null,null,null,null,null,null,"Date"]
[null,"Payee Name"]
[null,null,null,null,null,null,null,null,"(Must match submitted IRS Form W-9)"]
[null,"Mailing Address\n(for check)"]
[null,null,null,null,null,null,"Street",null,null,null,null,null,null,null,null,null,null,"City",null,null,null,null,null,null,null,null,"State",null,null,"Zip"]
[null,"Phone",null,null,null,null,null,null,null,null,null,null,null,null,null,null,null,null,null,null,"Email"]

{"sheet":"Optional Demographic Questions","index":3,"n_rows":41,"n_cols":20,"rows_kept":41,"cut":false,"hidden":false,"merged":[[33,7,33,14],[39,21,39,28],[13,25,13,31],[15,8,15,14],[16,17,17,31],[18,0,19,14],[23,21,23,28],[28,17,28,32],[0,0,0,31],[2,0,3,16],[2,17,3,31],[8,5,8,14],[9,24,9,31],[11,0,11,15]]}
["Optional Commercial Participant Demographic Information (If completed, choose all that apply)"]
[]
["1. Which of the following best describes your position at the business?",null,null,null,null,null,null,null,null,null,null,null,null,null,null,null,null,"4. Which of the following racial and ethnic backgrounds best describe you? (select all that apply)"]
[]
[null,null,"Owner",null,null,null,null,null,null,null,null,null,null,null,null,null,null,null,null,"Asian/Asian American"]
[null,null,"Executive or decision-maker",null,null,null,null,null,null,null,null,null,null,null,null,null,null,null,null,"Black/African American"]
[null,null,"Manager",null,null,null,null,null,null,null,null,null,null,null,null,null,null,null,null,"Hispanic or Latino/a/x"]
[null,null,"Employee",null,null,null,null,null,null,null,null,null,null,null,null,null,null,null,null,"Middle Eastern or North African"]
[null,null,"Other Role:",null,null,null,null,null,null,null,null,null,null,null,null,null,null,null,null,"Native American/First Nations/Alaskan Native"]
[null,null,"Prefer not to answer",null,null,null,null,null,null,null,null,null,null,null,null,null,null,null,null,"Tribal Affiliation:"]
[null,null,null,null,null,null,null,null,null,null,null,null,null,null,null,null,null,null,null,"Native Hawaiian/Pacific Islander"]
["2. What best describes your gender?",null,null,null,null,null,null,null,null,null,null,null,null,null,null,null,null,null,null,"White"]
[null,null,"Female ",null,null,null,null,null,null,null,null,null,null,null,null,null,null,null,null,"Biracial/Multi-racial"]
[null,null,"Male ",null,null,null,null,null,null,null,null,null,null,null,null,null,null,null,null,"Prefer to self-describe:"]
[null,null,"Non-binary/third gender ",null,null,null,null,null,null,null,null,null,null,null,null,null,null,null,null,"Prefer not to answer"]
[null,null,"Prefer to self-describe:      "]
[null,null,"Prefer not to answer",null,null,null,null,null,null,null,null,null,null,null,null,null,null,"5. Which of the following describe your firm or organization? (select all that apply)  "]
[]
["3. What is the primary language(s) used at your business in Oregon? (select all that apply)",null,null,null,null,null,null,null,null,null,null,null,null,null,null,null,null,null,null,"Minority Owned (MBE)"]
[null,null,null,null,null,null,null,null,null,null,null,null,null,null,null,null,null,null,null,"Women Owned (WBE)"]
[null,null,"Arabic",null,null,null,null,null,null,null,null,null,null,null,null,null,null,null,null,"Small Business"]
[null,null,"Cantonese",null,null,null,null,null,null,null,null,null,null,null,null,null,null,null,null,"Service Disabled/Veteran Owned (SDVO)"]
[null,null,"English",null,null,null,null,null,null,null,null,null,null,null,null,null,null,null,null,"Disadvantaged Business Enterprise (DBE)"]
[null,null,"French",null,null,null,null,null,null,null,null,null,null,null,null,null,null,null,null,"Other:"]
[null,null,"German",null,null,null,null,null,null,null,null,null,null,null,null,null,null,null,null,"None of the above"]
[null,null,"Japanese",null,null,null,null,null,null,null,null,null,null,null,null,null,null,null,null,"Don’t know"]
[null,null,"Korean",null,null,null,null,null,null,null,null,null,null,null,null,null,null,null,null,"Prefer not to answer"]
[null,null,"Mandarin"]
[null,null,"Marshallese",null,null,null,null,null,null,null,null,null,null,null,null,null,null,"6. Please tell us how you heard about Energy Trust incentives"]
[null,null,"Russian",null,null,null,null,null,null,null,null,null,null,null,null,null,null,null,null,"Energy Trust team member"]
[null,null,"Spanish",null,null,null,null,null,null,null,null,null,null,null,null,null,null,null,null,"Contractor/Trade Ally"]
[null,null,"Tagalog",null,null,null,null,null,null,null,null,null,null,null,null,null,null,null,null,"Energy Trust website"]
[null,null,"Vietnamese ",null,null,null,null,null,null,null,null,null,null,null,null,null,null,null,null,"Email"]
[null,null,"Another language:",null,null,null,null,null,null,null,null,null,null,null,null,null,null,null,null,"Direct Mail"]
[null,null,"Prefer not to answer",null,null,null,null,null,null,null,null,null,null,null,null,null,null,null,null,"Trade Association/Conference"]
[null,null,null,null,null,null,null,null,null,null,null,null,null,null,null,null,null,null,null,"Community event /Community organization  "]
[null,null,null,null,null,null,null,null,null,null,null,null,null,null,null,null,null,null,null,"Online (advertisement, social media or search engine)"]
[null,null,null,null,null,null,null,null,null,null,null,null,null,null,null,null,null,null,null,"Newspaper/Magazine"]
[null,null,null,null,null,null,null,null,null,null,null,null,null,null,null,null,null,null,null,"Recommended by a friend or colleague "]
[null,null,null,null,null,null,null,null,null,null,null,null,null,null,null,null,null,null,null,"Other:"]
[null,null,null,null,null,null,null,null,null,null,null,null,null,null,null,null,null,null,null,"Prefer not to answer"]

{"sheet":"NB - HVAC and Water Heating","index":4,"n_rows":30,"n_cols":10,"rows_kept":30,"cut":false,"hidden":false,"merged":[[17,1,20,1],[28,1,29,7],[15,1,16,1],[26,2,26,4],[25,1,26,1],[19,2,20,2],[19,3,20,3],[17,6,20,6],[17,7,20,7],[15,2,15,5],[17,2,17,5],[18,2,18,5],[21,2,21,5],[24,2,24,5],[25,2,25,5],[3,1,4,4],[11,1,13,1],[10,2,10,5],[11,2,11,5],[12,2,12,5],[13,2,13,5],[11,6,11,9],[16,2,16,4],[17,8,20,8],[17,9,20,9],[14,2,14,5]]}
[]
[null,"New Buildings Standard Incentives - NW Natural Washington"]
[null,"Commercial Buildings | Incentive Application | Form 120P-WA-NB"]
[null,"To be completed by Participant"]
[]
[]
[null,"TRC is a Program Management Contractor for Energy Trust of Oregon.",null,null,null,null,"Program Use Only",null,null,{"$f":"Version","v":"v2025.2"}]
[null,null,null,null,null,null,"Reference ID",{"$f":"IF(ReferenceID=\"\",\"\",ReferenceID)","v":""},"PTID",{"$f":"IF(PTID=\"\",\"\",PTID)","v":""}]
[]
[null," HVAC and Water Heating"]
[null,"EQUIPMENT","DESCRIPTION/REQUIREMENTS",null,null,null,"INCENTIVE PER UNIT","QUANTITY","INCENTIVE TOTAL","INSTALLED COST"]
[null," Infrared Radiant\n Heater"]
[null,null,"Non-Modulating:",null,null,null,4,null,{"$f":"G13*H13","v":0},0]
[null,null,"Modulating:",null,null,null,5,null,{"$f":"G14*H14","v":0},0]
[null," Commercial\n Condensing Gas\n Furnace",null,null,null,null,8.25,null,{"$f":"G15*H15","v":0}]
[null," Commercial\n Condensing Tank\n Water Heater",null,null,null,null,3.5,null,{"$f":"G16*H16","v":0},0]
[null,null,null,null,null,null,0.35,null,{"$f":"G17*H17","v":0},0]
[null," Commercial\n Condensing\n Tankless Water\n Heater under 200 \n kBtu/h input",null,null,null,null,140,null,{"$f":"G18*H18","v":0},0]
[null,null,"Is there an existing water storage tank attached?"]
[null,null,null,"If yes, what is the capacity? "]
[]
[null," Commercial\n Condensing\n Tankless Water\n Heater/Boiler\n at least 200 kBtu/h\n input",null,null,null,null,1.4,null,{"$f":"G22*H22","v":0},0]
[]
[null," HVAC and Water Heating continued"]
[null,"EQUIPMENT","DESCRIPTION/REQUIREMENTS",null,null,null,"INCENTIVE PER UNIT","QUANTITY","INCENTIVE TOTAL","INSTALLED COST"]
[null," Gas-fired\n High-Efficiency\n Condensing HVAC\n Boiler",null,null,null,null,6.5,null,{"$f":"G26*(H26)","v":0},0]
[null,null,null,null,null,null,0.05,null,{"$f":"G27*(H27)","v":0},0]
[]
[null,"TOTALS FOR HVAC AND WATER HEATING",null,null,null,null,null,null,"TOTAL \nINCENTIVES","TOTAL\nINSTALLED COST"]
[null,null,null,null,null,null,null,null,{"$f":"SUM(I13:I21,I22:I22,I26)","v":0},{"$f":"SUM(J13:J21,J22:J22,J26)","v":0}]

{"sheet":"NB - Lodging and Foodservice","index":5,"n_rows":64,"n_cols":12,"rows_kept":64,"cut":false,"hidden":false,"merged":[[10,2,10,7],[14,2,14,7],[26,2,26,7],[15,2,15,7],[16,2,16,7],[17,2,19,7],[20,2,22,7],[23,2,25,7],[62,1,63,9],[24,9,25,9],[15,1,25,1],[15,8,16,11],[18,9,19,9],[18,10,19,10],[18,11,19,11],[27,2,27,7],[21,9,22,9],[21,10,22,10],[21,11,22,11],[24,10,25,10],[24,11,25,11],[28,2,29,7],[52,1,54,1],[54,2,54,7],[53,2,53,7],[52,8,52,11],[43,1,51,1],[43,2,43,7],[55,1,60,1],[55,2,55,7],[55,8,55,11],[56,2,56,7],[57,2,57,7],[58,2,58,7],[59,2,59,7],[60,2,60,7],[11,8,11,11],[12,2,12,7],[13,2,13,7],[42,2,42,7],[52,2,52,7],[45,2,45,3],[46,2,46,4],[48,2,48,7],[27,8,37,8],[27,9,37,9],[43,8,47,11],[27,10,37,10],[27,11,37,11],[30,2,30,7],[11,1,13,1],[11,2,11,7],[49,2,49,7],[50,2,50,7],[51,2,51,7],[36,2,36,3],[35,2,35,3],[34,2,34,3],[33,2,33,3],[37,6,37,7],[36,6,36,7],[35,6,35,7],[34,6,34,7],[33,6,33,7],[44,2,44,3],[31,2,31,7],[27,1,37,1],[32,2,32,3],[32,4,32,5],[32,6,32,7],[33,4,33,5],[34,4,34,5],[35,4,35,5],[36,4,36,5],[37,4,37,5],[37,2,37,3]]}
[]
[null,"New Buildings Standard Incentives - NW Natural Washington"]
[null,"Commercial Buildings | Incentive Application | Form 120P-WA-NB"]
[]
[null,"To be completed by Participant"]
[]
[null,"TRC is a Program Management Contractor for Energy Trust of Oregon.",null,null,null,null,null,null,"Program Use Only",null,null,{"$f":"Version","v":"v2025.2"}]
[null,null,null,null,null,null,null,null,"Reference ID",{"$f":"IF(ReferenceID=\"\",\"\",ReferenceID)","v":""},"PTID",{"$f":"IF(PTID=\"\",\"\",PTID)","v":""}]
[]
[null,"Lodging and Foodservice Incentives"]
[null,"EQUIPMENT","REQUIREMENTS",null,null,null,null,null,"INCENTIVE PER UNIT","QUANTITY","INCENTIVE TOTAL","INSTALLED COST"]
[null," High Efficiency Gas\n Fryer"]
[null,null,"Standard Vat   ",null,null,null,null,null,1500,null,{"$f":"I13*J13","v":0},0]
[null,null,"Large Vat   ",null,null,null,null,null,2000,null,0,0]
[null," Commercial\n Laundry Washer,\n Common Areas",null,null,null,null,null,null,100,null,{"$f":"I15*J15","v":0},0]
[null,"Gas-fired Automatic Conveyor Broiler"]
[]
[null,null,"Total conveyor belt width less than 20”",null,null,null,null,null,2500,null,{"$f":"I18*J18","v":0},0]
[null,null,null,null,null,null,null,null,"Bonus incentive:",null,{"$f":"I20*J19","v":0}]
[null,null,null,null,null,null,null,null,485]
[null,null,"Total conveyor belt width 20” to 26”",null,null,null,null,null,3000,null,{"$f":"I21*J21","v":0},0]
[null,null,null,null,null,null,null,null,"Bonus incentive:",null,{"$f":"I23*J22","v":0}]
[null,null,null,null,null,null,null,null,485]
[null,null,"Total conveyor belt width greater than 26”",null,null,null,null,null,3500,null,{"$f":"I24*J24","v":0}]
[null,null,null,null,null,null,null,null,"Bonus incentive:",null,{"$f":"I26*J25","v":0},0]
[null,null,null,null,null,null,null,null,575]
[null,"Gas Griddle - \nSingle-sided",null,null,null,null,null,null,1000,null,0,0]
[null,"Gas Steam Cooker",null,null,null,null,null,null,1000,null,0,0]
[]
[]
[null,null,"Steam cooker type:"]
[null,null,"Gas Steam Cooker Efficiency Requirements"]
[null,null,"Number of Pans","Number of Pans","Cooking Energy Efficiency","Cooking Energy Efficiency","Idle Energy Rate","Idle Energy Rate"]
[null,null,3,"3-pan","39% or higher","39% or higher","2,440 Btu/h or lower","2,440 Btu/h or lower"]
[null,null,4,"4-pan","49% or higher","49% or higher","5,850 Btu/h or lower","5,850 Btu/h or lower"]
[null,null,5,"5-pan","49% or higher","49% or higher","7,027 Btu/h or lower","7,027 Btu/h or lower"]
[null,null,6,"6-pan","43% or higher","43% or higher","2,770 Btu/h or lower","2,770 Btu/h or lower"]
[null,null,"More than 6","More than 6 pans","48% or higher","48% or higher","11,287 Btu/h or lower","11,287 Btu/h or lower"]
[]
[]
[]
[null,"Lodging and Foodservice continued"]
[null,"EQUIPMENT","REQUIREMENTS",null,null,null,null,null,"INCENTIVE PER UNIT","QUANTITY","INCENTIVE TOTAL","INSTALLED COST"]
[null,"Commercial Swimming Pool Heater"]
[null,null,"   Pool Location: "]
[null,null,"   Pool Cover:"]
[null,null,"   Number of heaters serving pool: "]
[]
[null,null,"Non-condensing Heater, Covered",null,null,null,null,null,0.9,null,{"$f":"I49*J49","v":0}]
[null,null,"Non-condensing Heater, Not Covered",null,null,null,null,null,1,null,{"$f":"I50*J50","v":0}]
[null,null,"Condensing Heater, Covered",null,null,null,null,null,3,null,0]
[null,null,"Condensing Heater, Not Covered",null,null,null,null,null,5,null,0]
[null,"Two-stage Gas Valve on Clothes Dryers"]
[null,null,"Sites with on-premises laundry",null,null,null,null,null,700,null,{"$f":"I54*J54","v":0}]
[null,null,"Coin-operated laundromats",null,null,null,null,null,400,null,0]
[null,"Ozone Laundry Systems "]
[null,null,"Total laundry capacity is less than 75 lbs:",null,null,null,null,null,5000,null,{"$f":"I57*J57","v":0}]
[null,null,"Total laundry capacity is between 75 and 125 lbs:",null,null,null,null,null,7500,null,0]
[null,null,"Total laundry capacity is between 126 and 400 lbs:",null,null,null,null,null,15000,null,0]
[null,null,"Total laundry capacity is between 401 and 600 lbs:",null,null,null,null,null,25000,null,0]
[null,null,"Total laundry capacity is greater than 600 lbs:",null,null,null,null,null,30000,null,0]
[]
[null,"TOTALS FOR LODGING AND FOOD SERVICE",null,null,null,null,null,null,null,null,"TOTAL \nINCENTIVES","TOTAL\nINSTALLED COST"]
[null,null,null,null,null,null,null,null,null,null,{"$f":"SUM(K13:K15,K18:K38,K49:K52,K54:K55,K57:K61)","v":0},{"$f":"SUM(L13:L15,L18:L38,L49:L52,L54:L55,L57:L61)","v":0}]

{"sheet":"NB - Grocery","index":6,"n_rows":25,"n_cols":8,"rows_kept":25,"cut":false,"hidden":false,"merged":[[20,6,21,6],[20,7,21,7],[23,1,24,5],[10,2,10,3],[11,1,21,1],[11,2,11,3],[11,4,13,7],[12,2,13,3],[14,2,16,3],[15,5,16,5],[15,6,16,6],[15,7,16,7],[17,2,19,3],[18,5,19,5],[18,6,19,6],[18,7,19,7],[20,2,21,3],[20,5,21,5]]}
[]
[null,"New Buildings Standard Incentives - NW Natural Washington"]
[null,"Commercial Buildings | Incentive Application | Form 120P-WA-NB"]
[]
[null,"To be completed by Participant"]
[]
[null,"TRC is a Program Management Contractor for Energy Trust of Oregon.",null,null,"Program Use Only",null,null,{"$f":"Version","v":"v2025.2"}]
[null,null,null,null,"Reference ID",{"$f":"IF(ReferenceID=\"\",\"\",ReferenceID)","v":""},"PTID",{"$f":"IF(PTID=\"\",\"\",PTID)","v":""}]
[]
[null,"Grocery"]
[null,"EQUIPMENT","REQUIREMENTS",null,"INCENTIVE PER UNIT","QUANTITY","INCENTIVE TOTAL","INSTALLED COST"]
[null,"New Cooler Cases with Doors"]
[]
[]
[null,null,"Vertical cases - Coolers only   ",null,150,null,{"$f":"F15*E15","v":0}]
[null,null,null,null,"Bonus incentive:",null,{"$f":"E17*F16","v":0}]
[null,null,null,null,79]
[null,null,"Horizontal cases - Coolers or Freezers ",null,150,null,{"$f":"F18*E18","v":0}]
[null,null,null,null,"Bonus incentive:",null,{"$f":"E20*F19","v":0}]
[null,null,null,null,155]
[null,null,null,null,"Bonus incentive:",null,{"$f":"E22*F21","v":0}]
[null,null,null,null,155]
[]
[null,"TOTALS FOR LODGING AND FOOD SERVICE",null,null,null,null,"TOTAL \nINCENTIVES","TOTAL\nINSTALLED COST"]
[null,null,null,null,null,null,{"$f":"SUM(G15:G22)","v":0},{"$f":"SUM(H15:H22)","v":0}]

{"sheet":"Eligible Spaces","index":7,"n_rows":25,"n_cols":1,"rows_kept":25,"cut":false,"hidden":true,"merged":[]}
["(Select)"]
["Arcade"]
["Art classroom"]
["Bank vaults/safe deposit room"]
["Coin-operated Laundromat"]
["Commercial Laundromat"]
["Computer room (without printing)"]
["Copy/printing room"]
["Grocery Store"]
["Guard Stations"]
["Health club/weight room"]
["Hotel Rooms"]
["Library"]
["Main entry lobby"]
["Medical operating room"]
["Medical procedure room"]
["Office spaces"]
["Other"]
["Patient room"]
["Pet shop (animal areas) "]
["Photo studio"]
["Physical therapy"]
["Recovery and ICU area"]
["Sales floor (except mall common areas)"]
["Wood/metal shop"]

{"sheet":"Lookups","index":8,"n_rows":54,"n_cols":2,"rows_kept":54,"cut":false,"hidden":true,"merged":[]}
["Heat"]
[0,"None"]
[1,"Electric"]
[2,"Gas"]
[3,"Other"]
[]
[]
["Building Use Type"]
["(select)"]
["Assembly"]
["Athletic Club"]
["Auto Services"]
["College/University"]
["Data Center"]
["Grocery"]
["Hospital"]
["Laundry / Dry Cleaners"]
["Lodging / Hotel / Motel"]
["Manufacturing"]
["Multifamily / Residential"]
["Office"]
["Other"]
["Parking Structure"]
["Religious / Spiritual"]
["Restaurant"]
["Retail"]
["Retirement Home"]
["Schools K-12"]
["Warehouse"]
[]
[]
["Electric Utility"]
["(select)"]
["PGE"]
["Pacific Power"]
["Other"]
[]
["Gas Utility"]
["(select)"]
["NWN"]
["Other"]
[]
["Fuel Source"]
["(select)"]
["Electricity"]
["Gas"]
["Other"]
[]
["Project Type"]
[1,"Existing Buildings"]
[2,"New Buildings"]
[3,"Existing Multifamily Buildings"]
[4,"New Multifamily Buildings"]
[5,"Greenhouses"]

{"sheet":"Admin Tools","index":9,"n_rows":0,"n_cols":0,"rows_kept":0,"cut":false,"hidden":false,"merged":[]}